bitfinex/quotes_SOLUSD_20250722
["timestamp","ask_amount","ask_price","bid_price","bid_amount"]
[1753197170320,12.17408329,203.77,203.7,30.05]
[1753197170526,12.17408329,203.75,203.7,30.05]
[1753197170744,12.17408329,203.75,203.68,41.56408329]
[1753197171048,4.90821635,203.74,203.68,41.56408329]
[1753197171241,17.17875723,203.74,203.67,0.66]
[1753197171549,17.17875723,203.74,203.55,13.83041031]
[1753197171550,12.17408329,203.68,203.63,0.66]
[1753197171714,12.17408329,203.71,203.64,12.17408329]
[1753197171913,12.17408329,203.71,203.65,12.17408329]
[1753197172110,12.17408329,203.7,203.64,12.17408329]
[1753197172641,12.17408329,203.71,203.64,12.17408329]
[1753197172847,4.90942117,203.69,203.63,30.05]
[1753197173032,4.90942117,203.69,203.64,12.17408329]
[1753197173546,4.90942117,203.69,203.64,12.83408329]
[1753197174226,4.90942117,203.69,203.64,0.66]
[1753197175043,0.67,203.77,203.68,41.56408329]
[1753197175236,0.67,203.77,203.68,12.17408329]
[1753197175414,4.90725291,203.78,203.74,12.17408329]
[1753197175834,4.90725291,203.78,203.66,26.49101443]
[1753197175835,4.96712368,203.79,203.76,12.17408329]
[1753197176043,0.06,203.79,203.78,12.17408329]
[1753197176346,0.06,203.79,203.78,42.22408329]
[1753197176944,0.06,203.79,203.78,30.05]
[1753197177121,0.06,203.79,203.78,42.22408329]
[1753197177326,0.06,203.79,203.78,59.49949255]
[1753197177514,0.06,203.79,203.78,46.83468397]
[1753197177716,0.06,203.79,203.78,42.22408329]
[1753197178335,0.06,203.79,203.78,30.05]
[1753197178747,0.06,203.79,203.75,12.17408329]
[1753197178950,0.06,203.79,203.77,42.22408329]
[1753197179248,0.06,203.79,203.78,41.56408329]
[1753197179550,0.06,203.79,203.78,29.39]
[1753197179751,0.06,203.79,203.78,42.22408329]
[1753197180522,12.90408329,203.79,203.65,0.03]
[1753197180855,12.17408329,203.69,203.65,0.03]
[1753197181035,4.90966221,203.68,203.65,0.03]
[1753197181454,29.98340091,203.82,203.67,12.17408329]
[1753197181630,29.98340091,203.82,203.73,12.17408329]
[1753197181631,4.90725291,203.78,203.73,12.17408329]
[1753197181834,4.90725291,203.78,203.73,42.22408329]
[1753197182155,4.90725291,203.78,203.74,12.17408329]
[1753197182647,4.90725291,203.78,203.75,12.17408329]
[1753197182846,17.0813362,203.78,203.71,66.93]
[1753197183053,4.90725291,203.78,203.72,12.17408329]
[1753197183228,17.1753852,203.78,203.73,12.17408329]
[1753197183423,12.17408329,203.74,203.66,0.66]
[1753197183749,12.17408329,203.73,203.66,12.83408329]
[1753197183929,12.17408329,203.73,203.67,12.17408329]
[1753197184330,12.17408329,203.74,203.67,12.17408329]
[1753197184540,49.71408329,203.77,203.7,12.17408329]
[1753197184721,49.71408329,203.77,203.71,12.17408329]
[1753197184925,37.54,203.77,203.72,12.17408329]
[1753197185333,4.90773458,203.76,203.71,12.17408329]
[1753197185554,4.90773458,203.76,203.68,29.39]
[1753197185555,4.90773458,203.76,203.72,12.17408329]
[1753197185727,4.90773458,203.76,203.72,12.83408329]
[1753197186048,4.90773458,203.76,203.71,41.56408329]
[1753197186259,4.90773458,203.76,203.71,42.22408329]
[1753197186446,4.90773458,203.76,203.72,0.66]
[1753197186628,4.90773458,203.76,203.72,12.83408329]
[1753197187326,29.35115434,203.76,203.71,29.39]
[1753197187726,17.17707105,203.76,203.71,30.05]
[1753197188151,29.35115434,203.76,203.71,30.05]
[1753197188330,4.90773458,203.76,203.71,30.05]
[1753197188534,17.08181787,203.76,203.71,30.05]
[1753197188855,4.90773458,203.76,203.71,30.05]
[1753197189059,12.32761393,203.79,203.74,12.17408329]
[1753197189060,4.90725291,203.78,203.74,12.17408329]
[1753197189352,4.96701212,203.79,203.74,12.83408329]
[1753197189754,0.06,203.79,203.76,12.17408329]
[1753197189971,0.06,203.79,203.75,0.66]
[1753197190555,0.06,203.79,203.75,12.17408329]
[1753197190868,0.06,203.79,203.74,29.39]
[1753197190869,0.06,203.79,203.78,29.39]
[1753197191667,0.06,203.79,203.78,30.05]
[1753197192078,0.06,203.79,203.78,12.83408329]
[1753197192243,0.06,203.79,203.78,42.22408329]
[1753197192443,0.06,203.79,203.78,29.39]
[1753197192866,0.06,203.79,203.78,42.22408329]
[1753197193144,0.06,203.79,203.78,29.39]
[1753197193350,0.06,203.79,203.78,30.05]
[1753197193558,0.06,203.79,203.77,29.39]
[1753197193877,0.06,203.79,203.77,30.05]
[1753197194174,0.06,203.79,203.77,42.22408329]
[1753197194467,0.06,203.79,203.74,38.0]
[1753197194656,12.23408329,203.79,203.75,29.39]
[1753197194863,0.06,203.79,203.73,29.39]
[1753197195066,12.17408329,203.78,203.73,29.39]
[1753197195259,0.06,203.79,203.73,29.39]
[1753197195260,12.23408329,203.79,203.73,42.22408329]
[1753197195573,4.90725291,203.78,203.73,42.22408329]
[1753197195870,4.90725291,203.78,203.73,29.39]
[1753197195871,12.17408329,203.77,203.73,29.39]
[1753197196076,12.17408329,203.76,203.7,30.05]
[1753197196248,12.17408329,203.72,203.68,29.39]
[1753197196451,12.17408329,203.73,203.68,29.39]
[1753197196653,12.17408329,203.72,203.68,29.39]
[1753197196981,37.34,203.75,203.65,0.03]
[1753197196982,12.17408329,203.69,203.65,0.03]
[1753197197142,37.34,203.75,203.65,0.03]
[1753197197143,12.17408329,203.67,203.65,0.03]
[1753197197348,12.17408329,203.66,203.65,0.03]
[1753197197567,4.91014435,203.66,203.65,0.03]
[1753197197967,17.08422764,203.66,203.65,0.03]
[1753197198679,12.17408329,203.66,203.65,0.03]
[1753197198860,49.61382188,203.69,203.65,0.03]
[1753197199176,61.78790517,203.69,203.65,0.03]
[1753197199469,12.17408329,203.67,203.65,0.03]
[1753197199672,17.08398656,203.67,203.65,0.03]
[1753197200250,2.55818794,203.7,203.65,0.03]
[1753197200450,4.90919747,203.7,203.68,12.17408329]
[1753197200655,4.90919747,203.7,203.66,42.22408329]
[1753197201067,4.90919747,203.7,203.66,29.39]
[1753197201472,4.90919747,203.7,203.66,12.17408329]
[1753197201775,0.65,203.74,203.66,12.17408329]
[1753197201776,0.65,203.74,203.68,12.17408329]
[1753197202077,12.17408329,203.75,203.69,12.17408329]
[1753197202251,0.06,203.7,203.68,29.39]
[1753197202581,12.23408329,203.7,203.65,88.53]
[1753197202876,0.06,203.7,203.67,41.56408329]
[1753197203078,0.06,203.7,203.67,30.05]
[1753197203572,0.06,203.7,203.67,29.39]
[1753197203876,0.06,203.7,203.67,42.22408329]
[1753197204183,0.06,203.7,203.65,88.53]
[1753197204184,0.06,203.7,203.69,41.56408329]
[1753197204548,0.06,203.7,203.69,42.22408329]
[1753197205172,0.06,203.7,203.69,79.56408329]
[1753197205367,0.06,203.7,203.69,67.39]
[1753197205569,0.06,203.7,203.69,79.56408329]
[1753197205975,0.06,203.7,203.69,168.06408329]
[1753197206173,0.06,203.7,203.69,96.34876726]
[1753197206376,0.06,203.7,203.69,101.25818843]
[1753197206681,0.06,203.7,203.69,106.17018843]
[1753197207180,0.06,203.7,203.69,113.43227172]
[1753197207378,0.06,203.7,203.69,101.25818843]
[1753197207678,0.06,203.7,203.69,101.74913054]
[1753197207886,0.06,203.7,203.69,106.66113054]
[1753197208066,0.06,203.7,203.69,133.07427172]
[1753197208388,0.06,203.7,203.69,115.98818843]
[1753197208564,0.06,203.7,203.69,101.25818843]
[1753197209288,0.06,203.7,203.69,101.74913054]
[1753197210566,0.06,203.7,203.69,101.25818843]
[1753197210770,0.06,203.7,203.69,113.92321383]
[1753197210968,0.06,203.7,203.69,118.34427172]
[1753197211394,0.06,203.7,203.69,177.58410514]
[1753197211562,0.06,203.7,203.69,216.66227172]
[1753197211965,0.06,203.7,203.69,128.16227172]
[1753197212366,0.06,203.7,203.69,216.66227172]
[1753197212966,0.06,203.7,203.69,221.57427172]
[1753197213161,0.06,203.7,203.69,166.24410514]
[1753197213381,0.06,203.7,203.69,215.75818843]
[1753197213666,0.06,203.79,203.76,29.39]
[1753197213869,0.06,203.79,203.78,41.56408329]
[1753197214073,0.06,203.79,203.78,46.47608329]
[1753197214273,0.06,203.79,203.78,42.22408329]
[1753197214695,0.06,203.79,203.78,59.00876726]
[1753197214867,0.06,203.79,203.78,59.49949255]
[1753197215067,0.06,203.79,203.78,64.41149255]
[1753197215293,0.06,203.79,203.78,102.69881086]
[1753197215503,0.06,203.79,203.78,102.20808557]
[1753197215793,0.06,203.79,203.78,144.45533848]
[1753197216099,27.00151091,203.85,203.84,41.56408329]
[1753197216302,27.00151091,203.85,203.84,78.90408329]
[1753197216596,27.00151091,203.85,203.84,29.39]
[1753197216788,27.00151091,203.85,203.84,41.56408329]
[1753197216975,27.00151091,203.85,203.84,42.22408329]
[1753197217299,0.06,203.87,203.84,42.22408329]
[1753197217495,0.06,203.87,203.86,41.56408329]
[1753197218870,0.06,203.87,203.86,42.22408329]
[1753197220495,0.06,203.87,203.86,64.40462715]
[1753197221396,0.06,203.87,203.86,69.30762715]
[1753197221598,0.06,203.9,203.89,72.17468397]
[1753197221766,0.2,203.95,203.94,73.07876726]
[1753197222090,0.06,204.0,203.94,110.88910755]
[1753197222285,0.06,204.0,203.99,29.39]
[1753197222593,0.06,204.0,203.99,41.56408329]
[1753197223383,0.06,204.0,203.93,26.0]
[1753197223384,12.88408329,204.0,203.91,29.39]
[1753197223590,17.86686274,204.0,203.93,41.56408329]
[1753197223796,4.96196078,204.0,203.99,12.17408329]
[1753197223988,0.06,204.0,203.99,12.17408329]
[1753197224293,0.06,204.0,203.99,41.56408329]
[1753197225194,0.06,204.0,203.99,29.39]
[1753197225380,0.06,204.0,203.99,12.17408329]
[1753197225782,0.06,204.0,203.98,41.56408329]
[1753197225979,0.06,204.0,203.99,12.17408329]
[1753197226888,0.06,204.0,203.98,29.39]
[1753197227097,0.06,204.0,203.99,42.22408329]
[1753197227281,0.06,204.0,203.99,59.00876726]
[1753197227493,0.06,204.0,203.99,96.28876726]
[1753197227687,0.06,204.0,203.99,101.19096834]
[1753197227883,0.06,204.0,203.99,101.24096834]
[1753197228290,0.06,204.0,203.99,78.69096834]
[1753197228601,0.06,204.0,203.99,101.73118844]
[1753197228778,0.06,204.01,203.99,101.24096834]
[1753197228979,0.06,204.01,204.0,100.27896333]
[1753197229279,0.06,204.04,204.0,104.227671]
[1753197229482,0.06,204.04,204.03,54.23607945]
[1753197229790,0.06,204.04,204.03,96.41731946]
[1753197229984,0.06,204.04,204.03,89.06592398]
[1753197230301,0.06,204.04,204.03,97.12731946]
[1753197230882,0.06,204.04,204.03,97.61744346]
[1753197231234,7.45166761,204.15,204.04,46.17468397]
[1753197231385,7.45166761,204.15,204.11,12.16205673]
[1753197231578,7.45166761,204.15,204.13,12.16205673]
[1753197231778,2.5532878,204.15,204.14,12.16205673]
[1753197232001,4.89811391,204.17,204.14,12.16205673]
[1753197232200,4.89811391,204.17,204.1,0.71]
[1753197232201,4.89739948,204.19,204.16,41.55205673]
[1753197232580,4.64342246,204.21,204.18,12.16205673]
[1753197232890,350.0,204.22,204.12,12.16205673]
[1753197232891,349.73842246,204.22,204.21,46.17468397]
[1753197233094,349.73842246,204.22,204.21,79.52205673]
[1753197233478,354.63510251,204.22,204.18,29.39]
[1753197233685,366.79715924,204.22,204.18,29.39]
[1753197233875,12.87205673,204.21,204.16,29.39]
[1753197234281,12.16205673,204.17,204.1,12.16205673]
[1753197234510,12.16205673,204.17,204.11,41.55205673]
[1753197234713,12.16205673,204.18,204.12,41.55205673]
[1753197235007,12.16205673,204.17,204.12,29.39]
[1753197235200,12.16205673,204.17,204.09,0.71]
[1753197235201,12.16205673,204.15,204.09,37.26]
[1753197235394,5.60811912,204.16,204.11,12.16205673]
[1753197235700,12.87205673,204.15,204.1,29.39]
[1753197236002,0.71,204.14,204.1,29.39]
[1753197236710,12.87205673,204.14,204.1,29.39]
[1753197236913,17.14341692,204.16,204.08,12.16205673]
[1753197237220,4.89907897,204.12,204.08,12.16205673]
[1753197237580,4.89907897,204.12,204.09,41.55205673]
[1753197238410,4.8988271,204.14,204.09,41.55205673]
[1753197238814,5.6088271,204.14,204.09,29.39]
[1753197239003,17.77088383,204.14,204.09,29.39]
[1753197239185,5.6088271,204.14,204.09,29.39]
[1753197239492,0.71,204.13,204.09,29.39]
[1753197239693,349.73842246,204.22,204.13,16.78468397]
[1753197239904,349.73842246,204.22,204.15,41.55205673]
[1753197239905,17.05897656,204.21,204.15,41.55205673]
[1753197240101,17.05897656,204.21,204.15,29.39]
[1753197240282,12.16205673,204.16,204.03,0.71]
[1753197240482,12.16205673,204.09,204.03,12.16205673]
[1753197240707,6.0535,204.16,203.96,5.613]
[1753197240708,12.16205673,204.04,203.96,5.613]
[1753197240883,12.16205673,204.02,203.96,17.77505673]
[1753197241095,4.90124001,204.03,203.96,5.613]
[1753197241307,17.06329674,204.03,203.97,12.56883109]
[1753197241510,26.0,204.13,204.02,12.16205673]
[1753197241722,0.71,204.18,204.12,12.16205673]
[1753197242012,349.73842246,204.22,204.15,12.16205673]
[1753197242324,349.73842246,204.22,204.16,12.16205673]
[1753197242520,349.73842246,204.22,204.18,12.16205673]
[1753197242720,349.73842246,204.22,204.18,12.87205673]
[1753197242921,349.73842246,204.22,204.18,96.2867407]
[1753197243224,349.73842246,204.22,204.18,101.18438003]
[1753197243390,349.73842246,204.22,204.18,104.14852009]
[1753197243733,303.30434414,204.22,204.21,46.17468397]
[1753197244026,0.06,204.24,204.21,136.28123769]
[1753197244330,2.2706,204.39,204.31,29.39]
[1753197244508,2.2706,204.39,204.34,12.16205673]
[1753197244688,2.54964856,204.43,204.34,12.16205673]
[1753197244885,0.71,204.45,204.34,12.16205673]
[1753197245090,5.60122003,204.45,204.34,58.82612114]
[1753197245424,1.6517,204.47,204.34,58.82612114]
[1753197245425,1.6517,204.47,204.34,63.71992558]
[1753197245592,4.89093221,204.46,204.34,63.71992558]
[1753197245793,4.89093221,204.46,204.43,12.16205673]
[1753197246223,1.6517,204.47,204.43,12.16205673]
[1753197246435,1.6517,204.47,204.37,29.39]
[1753197246736,19.47913065,204.47,204.37,29.39]
[1753197246942,12.16205673,204.43,204.37,37.22]
[1753197247240,0.71,204.46,204.31,29.39]
[1753197247241,4.89284665,204.38,204.31,37.22]
[1753197247438,4.89258926,204.4,204.37,12.16205673]
[1753197247613,4.89258926,204.4,204.31,37.7094523]
[1753197248008,4.89258926,204.4,204.38,12.16205673]
[1753197248228,0.71,204.39,204.35,37.2]
[1753197248425,4.89258926,204.4,204.35,37.2]
[1753197248426,4.89258926,204.4,204.35,12.16205673]
[1753197248728,4.89117143,204.45,204.39,12.16205673]
[1753197248937,4.89117143,204.45,204.41,12.16205673]
[1753197249122,4.89093221,204.46,204.39,37.2]
[1753197249328,0.71,204.45,204.42,12.16205673]
[1753197249637,0.71,204.45,204.41,12.16205673]
[1753197250045,17.05298894,204.46,204.39,37.2]
[1753197250254,0.71,204.44,204.41,12.16205673]
[1753197250543,12.87205673,204.43,204.38,0.2059877]
[1753197250713,4.89093221,204.46,204.42,12.16205673]
[1753197250916,0.71,204.46,204.44,12.16205673]
[1753197251315,0.71,204.46,204.43,12.16205673]
[1753197251316,5.60098226,204.46,204.43,12.16205673]
[1753197251512,0.71,204.46,204.43,12.16205673]
[1753197251733,11.735763,204.5,204.45,12.16205673]
[1753197251922,11.025763,204.5,204.49,12.16205673]
[1753197252251,16.62586686,204.5,204.44,37.2]
[1753197252415,11.025763,204.5,204.49,12.16205673]
[1753197253138,11.025763,204.5,204.48,37.2]
[1753197253623,11.025763,204.5,204.49,12.16205673]
[1753197253820,11.025763,204.5,204.48,37.2]
[1753197254012,11.025763,204.5,204.49,12.16205673]
[1753197254418,11.025763,204.5,204.46,0.48909322]
[1753197254646,15.91573855,204.5,204.49,12.16205673]
[1753197254942,11.025763,204.5,204.49,12.16205673]
[1753197255923,11.025763,204.5,204.46,0.48909322]
[1753197256617,11.025763,204.5,204.48,12.16205673]
[1753197256928,11.025763,204.5,204.49,49.81107819]
[1753197257717,11.025763,204.5,204.49,54.43370543]
[1753197257916,11.025763,204.5,204.49,100.87597684]
[1753197258145,6.7176,204.63,204.49,100.87597684]
[1753197258146,0.69,204.68,204.58,10.0]
[1753197258320,0.69,204.68,204.53,46.17468397]
[1753197258321,2.55154141,204.7,204.62,10.0]
[1753197258524,0.69,204.69,204.64,10.0]
[1753197258733,12.16205673,204.68,204.64,10.0]
[1753197258934,12.16205673,204.71,204.65,37.16]
[1753197259266,5.57455364,204.73,204.66,10.0]
[1753197259433,4.88185901,204.84,204.74,10.0]
[1753197259743,0.374625,204.85,204.81,10.0]
[1753197259933,0.374625,204.85,204.82,37.16]
[1753197260136,0.374625,204.85,204.83,10.0]
[1753197260325,0.374625,204.85,204.81,10.4882574]
[1753197260526,0.374625,204.85,204.81,10.0]
[1753197260757,12.16205673,204.83,204.78,10.0]
[1753197261043,12.16205673,204.83,204.74,2.41234176]
[1753197261044,12.16205673,204.82,204.76,47.16]
[1753197261298,5.25626812,204.85,204.76,47.16]
[1753197261422,12.16205673,204.83,204.79,10.0]
[1753197261745,0.374625,204.85,204.84,10.0]
[1753197262341,0.374625,204.85,204.84,63.94468397]
[1753197262520,0.374625,204.85,204.84,105.4967407]
[1753197262715,0.374625,204.85,204.84,93.33468397]
[1753197262937,0.374625,204.85,204.84,105.4967407]
[1753197263144,0.374625,204.85,204.84,93.33468397]
[1753197263353,0.374625,204.85,204.84,10.0]
[1753197263552,0.374625,204.85,204.82,39.39]
[1753197263856,0.374625,204.85,204.84,22.16205673]
[1753197264065,0.374625,204.85,204.84,68.8249266]
[1753197264558,0.374625,204.85,204.84,106.0049266]
[1753197264727,0.374625,204.85,204.84,105.5167407]
[1753197265098,0.374625,204.85,204.84,39.39]
[1753197265265,0.374625,204.85,204.84,10.0]
[1753197266776,1.064625,204.85,204.84,10.0]
[1753197266972,4.88185901,204.84,204.78,10.0]
[1753197267176,4.88185901,204.84,204.71,0.48849592]
[1753197267177,0.69,204.83,204.75,10.0]
[1753197267402,12.16205673,204.82,204.77,10.16669288]
[1753197267567,12.16205673,204.78,204.77,0.16669288]
[1753197267767,0.69,204.81,204.68,10.0]
[1753197268091,12.16205673,204.69,204.68,10.0]
[1753197268260,12.85205673,204.69,204.65,10.0]
[1753197268460,12.16205673,204.82,204.65,10.0]
[1753197268681,12.16205673,204.82,204.58,37.86880633]
[1753197268682,12.16205673,204.67,204.64,10.0]
[1753197268974,12.16205673,204.65,204.64,10.0]
[1753197269167,12.85205673,204.65,204.64,10.0]
[1753197269360,1.642,204.75,204.64,10.0]
[1753197269361,24.42277763,204.73,204.64,10.0]
[1753197269581,0.69,204.7,204.67,10.0]
[1753197269965,12.16205673,204.68,204.58,12.16205673]
[1753197270167,0.69,204.67,204.55,37.42]
[1753197270382,12.16205673,204.7,204.64,12.16205673]
[1753197270572,0.69,204.71,204.62,29.39]
[1753197270781,0.69,204.71,204.66,29.39]
[1753197271085,0.69,204.71,204.64,0.48866301]
[1753197271301,0.69,204.71,204.67,12.16205673]
[1753197271484,13.80405673,204.75,204.64,29.87866301]
[1753197271678,12.85205673,204.74,204.67,12.16205673]
[1753197271861,12.16205673,204.71,204.64,0.48866301]
[1753197272065,12.16205673,204.69,204.62,49.62205673]
[1753197272285,0.69,204.74,204.63,0.48868689]
[1753197272466,12.16205673,204.72,204.66,12.16205673]
[1753197272672,12.16205673,204.71,204.65,12.16205673]
[1753197272874,0.69,204.74,204.68,12.16205673]
[1753197273079,1.5134,204.83,204.7,12.16205673]
[1753197273080,12.16205673,204.76,204.7,12.16205673]
[1753197273268,12.16205673,204.75,204.69,12.16205673]
[1753197273801,12.16205673,204.77,204.71,12.16205673]
[1753197273993,12.16205673,204.75,204.69,0.48854365]
[1753197274176,12.16205673,204.76,204.7,12.16205673]
[1753197274371,12.85205673,204.77,204.7,12.16205673]
[1753197274693,12.16205673,204.76,204.71,0.5]
[1753197274990,0.69,204.77,204.72,12.16205673]
[1753197275194,12.16205673,204.79,204.72,12.16205673]
[1753197275394,0.69,204.8,204.73,12.16205673]
[1753197275579,12.16205673,204.82,204.76,12.16205673]
[1753197275900,12.85205673,204.81,204.75,12.16205673]
[1753197276071,0.434625,204.85,204.75,12.16205673]
[1753197276072,12.16205673,204.82,204.75,12.16205673]
[1753197276392,12.16205673,204.82,204.74,0.48842434]
[1753197276607,12.16205673,204.82,204.76,12.16205673]
[1753197276977,0.69,204.84,204.76,12.16205673]
[1753197277290,0.69,204.84,204.77,12.16205673]
[1753197277482,0.434625,204.85,204.79,12.16205673]
[1753197277685,0.434625,204.85,204.81,12.16205673]
[1753197278281,12.16205673,204.83,204.77,12.16205673]
[1753197278488,0.69,204.84,204.76,49.56205673]
[1753197278678,0.434625,204.85,204.78,12.16205673]
[1753197278888,0.434625,204.85,204.79,12.16205673]
[1753197279078,0.434625,204.85,204.78,12.16205673]
[1753197279281,12.16205673,204.84,204.76,66.79]
[1753197279488,12.16205673,204.82,204.76,78.95205673]
[1753197279999,12.85205673,204.81,204.74,0.161672]
[1753197280202,12.16205673,204.79,204.74,0.161672]
[1753197280401,12.16205673,204.8,204.74,12.32372873]
[1753197280604,12.16205673,204.83,204.77,12.16205673]
[1753197280786,12.16205673,204.82,204.75,12.16205673]
[1753197281182,12.16205673,204.82,204.76,29.39]
[1753197281485,0.69,204.81,204.72,49.56205673]
[1753197281684,12.16205673,204.77,204.72,37.4]
[1753197282109,12.85205673,204.77,204.72,37.4]
[1753197282601,12.16205673,204.79,204.73,17.06505673]
[1753197282807,12.16205673,204.8,204.75,4.903]
[1753197283015,0.69,204.79,204.75,4.903]
[1753197283219,0.434625,204.85,204.8,26.0]
[1753197283512,0.434625,204.85,204.84,67.55205673]
[1753197283880,0.434625,204.85,204.84,68.25205673]
[1753197284285,0.434625,204.85,204.84,73.15505673]
[1753197284712,0.434625,204.85,204.84,73.65505673]
[1753197284887,0.434625,204.85,204.84,37.98]
[1753197285282,13.28668173,204.85,204.84,0.5]
[1753197285498,18.16830242,204.85,204.82,0.13797027]
[1753197285809,12.16205673,204.83,204.82,0.13797027]
[1753197286487,12.85205673,204.84,204.82,0.13797027]
[1753197286991,0.434625,204.85,204.83,41.55205673]
[1753197287193,0.434625,204.85,204.84,41.55205673]
[1753197287404,0.434625,204.85,204.84,46.45505673]
[1753197287986,0.434625,204.85,204.84,41.55205673]
[1753197288191,0.434625,204.85,204.84,42.24205673]
[1753197288392,0.434625,204.85,204.84,47.14505673]
[1753197289507,0.434625,204.85,204.84,29.39]
[1753197289708,0.434625,204.85,204.84,29.89]
[1753197290011,0.434625,204.85,204.84,59.3249266]
[1753197290215,0.434625,204.85,204.84,77.09768676]
[1753197290512,42.51850555,205.0,204.84,77.09768676]
[1753197290513,48.05656181,205.0,204.92,12.16205673]
[1753197290711,12.16205673,204.99,204.93,41.55205673]
[1753197291014,46.46396181,205.0,204.9,28.9467407]
[1753197291211,12.16205673,204.96,204.91,37.48]
[1753197291387,46.46396181,205.0,204.91,37.48]
[1753197291388,45.80396181,205.0,204.91,37.48]
[1753197291592,12.16205673,204.96,204.92,4.903]
[1753197291818,17.04089234,204.97,204.92,34.293]
[1753197292315,12.16205673,204.95,204.92,37.46]
[1753197292630,12.16205673,204.95,204.92,42.363]
[1753197292793,4.87828674,204.99,204.92,37.46]
[1753197292991,12.16205673,204.96,204.92,37.46]
[1753197293418,12.16205673,204.95,204.92,37.46]
[1753197293728,12.16205673,204.96,204.92,37.46]
[1753197293883,0.06,204.96,204.93,0.26]
[1753197294083,0.06,204.96,204.94,29.39]
[1753197294504,0.06,204.96,204.93,5.10033797]
[1753197294505,12.16205673,204.95,204.92,37.44]
[1753197294706,0.66,204.95,204.92,37.44]
[1753197294897,0.06,204.96,204.92,37.44]
[1753197295309,0.06,204.96,204.93,0.4879715]
[1753197295691,0.06,204.96,204.93,34.7809715]
[1753197296428,12.16205673,204.94,204.89,29.39]
[1753197296601,12.16205673,204.92,204.9,37.42]
[1753197296801,12.16205673,204.92,204.84,6.60292383]
[1753197297002,0.66,204.95,204.89,26.0]
[1753197297310,12.16205673,204.93,204.9,66.79]
[1753197297509,40.92590555,205.0,204.9,79.44009967]
[1753197297510,36.74090555,205.0,204.9,79.44009967]
[1753197297715,36.74090555,205.0,204.86,0.69]
[1753197297716,7.28775673,204.91,204.86,0.69]
[1753197297915,48.9360275,205.0,204.89,12.16205673]
[1753197297916,36.74090555,205.0,204.89,12.16205673]
[1753197298114,12.16205673,204.95,204.9,26.69]
[1753197298307,12.16205673,204.95,204.84,12.89276016]
[1753197298308,31.83590555,205.0,204.94,67.55205673]
[1753197298502,31.83590555,205.0,204.95,0.48792388]
[1753197298503,43.99796228,205.0,204.95,0.48792388]
[1753197298720,31.83590555,205.0,204.97,4.903]
[1753197298892,31.83590555,205.0,204.97,34.293]
[1753197299334,26.96350555,205.0,204.97,42.039933]
[1753197299511,26.96350555,205.0,204.98,0.69]
[1753197299700,39.12556228,205.0,204.99,37.6]
[1753197299907,22.05850555,205.0,204.99,67.68]
[1753197300124,22.05850555,205.0,204.99,72.88883742]
[1753197300341,39.75863481,205.0,204.92,0.69]
[1753197300628,12.16205673,204.93,204.85,29.39]
[1753197300839,12.16205673,204.89,204.87,34.293]
[1753197300997,0.66,204.93,204.84,37.66]
[1753197301199,12.16205673,204.85,204.83,0.13798584]
[1753197301418,0.66,204.84,204.83,0.13798584]
[1753197301732,4.88209734,204.83,204.72,29.39]
[1753197301905,0.66,204.84,204.74,41.55205673]
[1753197302108,0.66,204.84,204.76,29.39]
[1753197302302,0.66,204.86,204.76,29.39]
[1753197302514,0.66,204.86,204.78,41.55205673]
[1753197302723,12.16205673,204.89,204.82,41.55205673]
[1753197303026,0.66,204.9,204.83,37.76]
[1753197303228,12.16205673,204.84,204.83,37.76]
[1753197303639,24.98411346,204.84,204.73,37.76]
[1753197303933,12.16205673,204.74,204.7,0.03]
[1753197304139,12.16205673,204.71,204.7,0.03]
[1753197304520,12.16205673,204.82,204.7,0.03]
[1753197304521,0.66,204.75,204.7,0.03]
[1753197304827,12.16205673,204.82,204.7,0.03]
[1753197304828,12.16205673,204.71,204.7,0.03]
[1753197305039,12.82205673,204.71,204.68,0.09607933]
[1753197305205,24.32411346,204.69,204.57,0.03]